[Event "EYCC Girls-U12 2019"]
[Site "Bratislava"]
[Date "2019.08.10"]
[Round "9.20"]
[White "Norman, Kseniya"]
[Black "Salajan, Stefania"]
[Result "1/2-1/2"]
[ECO "B23"]
[WhiteElo "1532"]
[BlackElo "1482"]
[Annotator "NA RC"]
[PlyCount "115"]
[EventDate "2019.08.02"]
[EventType "swiss"]
[EventCountry "SVK"]
[SourceTitle "playchess.com"]
[Source "ChessBase"]
[SourceQuality "1"]
[TimeControl "40/5400+30:1800+30"]

1. e4 {[%emt 0:00:00]} c5 {[%emt 0:00:00]} 2. Nc3 {[%emt 0:00:00]} e6 {[%emt 0:00:00]} 3. f4 {[%emt 0:00:00]} Nc6 {[%emt 0:00:50]} 4. Nf3 {[%emt 0:00:06]} a6 {[%emt 0:03:08]} 5. g3 {[%emt 0:00:39]} d5 {[%emt 0:00:28]} 6. d3 {[%emt 0:01:52]} Be7 {[%emt 0:04:37]} 7. Bg2 {[%emt 0:01:21]} dxe4 {[%emt 0:01:22]} 8. Nxe4 {[%emt 0:01:49]} Nf6 {[%emt 0:00:40]} 9. O-O {[%emt 0:01:20]} Nd5 {[%emt 0:05:04]} 10. d4 {[%emt 0:06:59]} cxd4 {[%emt 0:04:38]} 11. Nxd4 {[%emt 0:00:25]} Qb6 {[%emt 0:03:03]} 12. c3 {[%emt 0:01:13]} Nxd4 {[%emt 0:02:07]} 13. Qxd4 {[%emt 0:01:09]} Qxd4+ {[%emt 0:00:06]} 14. cxd4 {[%emt 0:00:04]} O-O {[%emt 0:01:56]} 15. Nc3 {[%emt 0:00:55]} Nb4 {[%emt 0:04:24]} 16. Be4 {[%emt 0:08:25]} Bf6 {[%emt 0:15:11]} 17. Be3 {[%emt 0:02:15]} Rd8 {[%emt 0:10:27]} 18. Rfd1 {[%emt 0:03:47]} Nd5 {[%emt 0:05:30]} 19. Bf2 {[%emt 0:01:37]} Rb8 {[%emt 0:04:22]} 20. Rac1 {[%emt 0:04:27]} b5 {[%emt 0:02:14]} 21. f5 {[%emt 0:04:18]} Nxc3 {[%emt 0:02:45]} 22. bxc3 {[%emt 0:00:06]} exf5 {[%emt 0:00:10]} 23. Bc2 {[%emt 0:00:38]} Be6 {[%emt 0:02:00]} 24. Bb3 {[%emt 0:00:35]} Bc4 {[%emt 0:02:25]} 25. Be3 {[%emt 0:01:26]} Rbc8 {[%emt 0:02:06]} 26. Kf2 {[%emt 0:04:58]} g6 {[%emt 0:04:41]} 27. h4 {[%emt 0:02:30]} Kg7 {[%emt 0:02:06]} 28. Re1 {[%emt 0:05:52]} Re8 {[%emt 0:02:27]} 29. Bxc4 {[%emt 0:00:38]} bxc4 {[%emt 0:00:43]} 30. Rb1 {[%emt 0:01:02]} Rb8 {[%emt 0:01:33]} 31. Bf4 {[%emt 0:00:54]} Rxb1 {[%emt 0:03:54]} 32. Rxb1 {[%emt 0:00:06]} Rc8 {[%emt 0:01:28]} 33. Rb6 {[%emt 0:01:51]} a5 {[%emt 0:00:49]} 34. Rb5 {[%emt 0:00:26]} Bd8 {[%emt 0:00:50]} 35. a4 {[%emt 0:01:10]} Kg8 {[%emt 0:02:41]} 36. Bd6 {[%emt 0:01:31]} Rc6 {[%emt 0:03:03]} 37. Bc5 {[%emt 0:01:18]} Bc7 {[%emt 0:01:35]} 38. d5 {[%emt 0:01:04]} Rxc5 {[%emt 0:00:31]} 39. Ke3 {[%emt 0:00:23]} Bb6 {[%emt 0:00:49]} 40. Rxb6 {[%emt 0:00:00]} Rxd5 {[%emt 0:00:00]} 41. Rb5 {[%emt 0:02:00]} Rd3+ {[%emt 0:01:33]} 42. Ke2 {[%emt 0:00:40]} Rxc3 {[%emt 0:00:15]} 43. Rxa5 {[%emt 0:00:08]} Ra3 {[%emt 0:02:11]} 44. Ra8+ {[%emt 0:00:31]} Kg7 {[%emt 0:00:37]} 45. Kf2 {[%emt 0:01:20]} f6 {[%emt 0:06:19]} 46. a5 {[%emt 0:00:23]} g5 {[%emt 0:01:33]} 47. a6 {[%emt 0:01:04]} gxh4 {[%emt 0:00:52]} 48. gxh4 {[%emt 0:00:06]} f4 {[%emt 0:00:44]} 49. Rc8 {[%emt 0:01:06]} Rxa6 {[%emt 0:02:15]} 50. Rxc4 {[%emt 0:00:06]} Ra2+ {[%emt 0:00:46]} 51. Kf3 {[%emt 0:00:22]} Ra3+ {[%emt 0:04:08]} 52. Kxf4 {[%emt 0:00:34]} Kg6 {[%emt 0:00:26]} 53. Rb4 {[%emt 0:01:43]} h5 {[%emt 0:00:47]} 54. Rb1 {[%emt 0:05:01]} Rh3 {[%emt 0:02:10]} 55. Rg1+ {[%emt 0:00:10]} Kf7 {[%emt 0:00:52]} 56. Kf5 {[%emt 0:00:18]} Rxh4 {[%emt 0:00:56]} 57. Ra1 {[%emt 0:00:21]} Kg8 58. Kxf6 1/2-1/2

[Event "EYCC Girls-U12 2019"]
[Site "Bratislava"]
[Date "2019.08.10"]
[Round "9.21"]
[White "Nordquelle, Amelia"]
[Black "Shahazizyan, Milena"]
[Result "0-1"]
[ECO "E34"]
[WhiteElo "1648"]
[BlackElo "1201"]
[Annotator "NA RC"]
[PlyCount "122"]
[EventDate "2019.08.02"]
[EventType "swiss"]
[EventCountry "SVK"]
[SourceTitle "playchess.com"]
[Source "ChessBase"]
[SourceQuality "1"]
[TimeControl "40/5400+30:1800+30"]

1. d4 {[%emt 0:00:00]} Nf6 {[%emt 0:00:00]} 2. c4 {[%emt 0:00:21]} e6 {[%emt 0:00:02]} 3. Nc3 {[%emt 0:00:14]} Bb4 {[%emt 0:00:15]} 4. Qc2 {[%emt 0:00:17]} d5 {[%emt 0:00:09]} 5. e3 {[%emt 0:01:25]} O-O {[%emt 0:00:46]} 6. Nf3 {[%emt 0:00:55]} c5 {[%emt 0:01:03]} 7. Bd3 {[%emt 0:00:52]} dxc4 {[%emt 0:01:59]} 8. Bxc4 {[%emt 0:00:28]} Nc6 {[%emt 0:00:48]} 9. a3 {[%emt 0:02:18]} Bxc3+ {[%emt 0:00:32]} 10. bxc3 {[%emt 0:00:16]} Qc7 {[%emt 0:03:15]} 11. Bd3 {[%emt 0:04:07]} Rd8 {[%emt 0:03:33]} 12. e4 {[%emt 0:01:32]} cxd4 {[%emt 0:02:18]} 13. cxd4 {[%emt 0:00:12]} Qb6 {[%emt 0:03:08]} 14. e5 {[%emt 0:06:03]} Nxd4 {[%emt 0:03:14]} 15. Nxd4 {[%emt 0:00:10]} Qxd4 {[%emt 0:00:02]} 16. Bb2 {[%emt 0:00:18]} Qxd3 {[%emt 0:01:36]} 17. Qxd3 {[%emt 0:04:15]} Rxd3 {[%emt 0:00:05]} 18. exf6 {[%emt 0:00:14]} g6 {[%emt 0:03:20]} 19. Ke2 {[%emt 0:01:18]} Rd5 {[%emt 0:00:36]} 20. Rhd1 {[%emt 0:03:06]} Bd7 {[%emt 0:03:29]} 21. Rxd5 {[%emt 0:04:03]} exd5 {[%emt 0:00:05]} 22. Be5 {[%emt 0:00:18]} Rd8 {[%emt 0:05:36]} 23. Ke3 {[%emt 0:08:31]} Rc8 {[%emt 0:04:47]} 24. Rb1 {[%emt 0:03:10]} b6 {[%emt 0:03:39]} 25. Rb3 {[%emt 0:09:00]} Kf8 {[%emt 0:02:15]} 26. Bd6+ {[%emt 0:07:51]} Ke8 {[%emt 0:01:01]} 27. Kd4 {[%emt 0:02:49]} Be6 {[%emt 0:02:22]} 28. f3 {[%emt 0:02:11]} Rc4+ {[%emt 0:05:15]} 29. Ke5 {[%emt 0:00:18]} Rc6 {[%emt 0:09:55]} 30. Bb8 {[%emt 0:15:03]} a6 {[%emt 0:00:58]} 31. a4 {[%emt 0:03:02]} Kd7 {[%emt 0:03:20]} 32. g4 {[%emt 0:02:29]} Kc8 {[%emt 0:02:05]} 33. Bd6 {[%emt 0:00:23]} Kb7 {[%emt 0:01:22]} 34. a5 {[%emt 0:09:51]} b5 {[%emt 0:00:54]} 35. Rb2 {[%emt 0:03:41]} Rc4 {[%emt 0:02:14]} 36. h3 {[%emt 0:04:30]} Kc6 {[%emt 0:02:08]} 37. Bb4 {[%emt 0:01:29]} d4 {[%emt 0:02:52]} 38. Be7 {[%emt 0:00:55]} Bd5 {[%emt 0:02:38]} 39. Rd2 {[%emt 0:01:02]} Bxf3 {[%emt 0:13:00]} 40. Rxd4 {[%emt 0:00:00]} Rxd4 {[%emt 0:00:00]} 41. Kxd4 {[%emt 0:00:13]} h6 {[%emt 0:02:40]} 42. Bb4 {[%emt 0:05:10]} g5 {[%emt 0:01:17]} 43. Bf8 {[%emt 0:02:55]} h5 {[%emt 0:02:36]} 44. gxh5 {[%emt 0:10:40]} Bxh5 {[%emt 0:00:06]} 45. Bh6 {[%emt 0:02:47]} g4 {[%emt 0:00:14]} 46. h4 {[%emt 0:08:15]} g3 {[%emt 0:04:01]} 47. Be3 {[%emt 0:00:19]} Be2 {[%emt 0:01:24]} 48. Bf4 {[%emt 0:02:09]} g2 {[%emt 0:00:31]} 49. Be3 {[%emt 0:00:05]} b4 {[%emt 0:00:30]} 50. h5 {[%emt 0:00:29]} Bxh5 {[%emt 0:01:03]} 51. Kc4 {[%emt 0:00:18]} Kd6 {[%emt 0:02:11]} 52. Kxb4 {[%emt 0:00:24]} Ke5 {[%emt 0:00:15]} 53. Kc3 {[%emt 0:01:21]} Kxf6 {[%emt 0:00:08]} 54. Kd2 {[%emt 0:01:00]} Ke5 {[%emt 0:00:19]} 55. Ke1 {[%emt 0:00:12]} Ke4 {[%emt 0:01:11]} 56. Bg1 {[%emt 0:01:37]} Kf3 {[%emt 0:00:49]} 57. Bf2 {[%emt 0:00:54]} f5 {[%emt 0:00:17]} 58. Bg1 {[%emt 0:00:07]} Kg3 {[%emt 0:00:36]} 59. Kd2 {[%emt 0:00:40]} f4 {[%emt 0:00:21]} 60. Kd3 {[%emt 0:00:23]} f3 {[%emt 0:01:25]} 61. Ke3 {[%emt 0:00:05]} Bg4 {[%emt 0:01:33]} 0-1

[Event "EYCC Girls-U12 2019"]
[Site "Bratislava"]
[Date "2019.08.10"]
[Round "9.22"]
[White "Kalenichenko, Alina"]
[Black "Darmaeva, Nomina"]
[Result "1-0"]
[ECO "A06"]
[WhiteElo "1549"]
[BlackElo "1408"]
[Annotator "NA RC"]
[PlyCount "80"]
[EventDate "2019.08.02"]
[EventType "swiss"]
[EventCountry "SVK"]
[SourceTitle "playchess.com"]
[Source "ChessBase"]
[SourceQuality "1"]
[TimeControl "40/5400+30:1800+30"]

1. Nf3 {[%emt 0:00:00]} d5 {[%emt 0:01:46]} 2. g3 {[%emt 0:00:00]} Bg4 {[%emt 0:01:54]} 3. Bg2 {[%emt 0:00:00]} Nd7 {[%emt 0:01:50]} 4. O-O {[%emt 0:00:33]} Ngf6 {[%emt 0:00:56]} 5. d3 {[%emt 0:00:27]} e5 {[%emt 0:01:21]} 6. Nbd2 {[%emt 0:00:33]} Be7 {[%emt 0:01:44]} 7. e4 {[%emt 0:00:27]} c6 {[%emt 0:03:34]} 8. h3 {[%emt 0:01:00]} Bh5 {[%emt 0:00:58]} 9. g4 {[%emt 0:00:26]} Bg6 {[%emt 0:00:46]} 10. Nh4 {[%emt 0:01:13]} Nc5 {[%emt 0:05:30]} 11. Nf5 {[%emt 0:00:45]} Bxf5 {[%emt 0:06:53]} 12. exf5 {[%emt 0:00:10]} h6 {[%emt 0:03:08]} 13. Nb3 {[%emt 0:01:09]} g6 {[%emt 0:04:52]} 14. f4 {[%emt 0:00:49]} exf4 {[%emt 0:08:26]} 15. fxg6 {[%emt 0:00:18]} fxg6 {[%emt 0:01:16]} 16. Bxf4 {[%emt 0:00:24]} g5 {[%emt 0:02:33]} 17. Nxc5 {[%emt 0:01:05]} Bxc5+ {[%emt 0:06:03]} 18. d4 {[%emt 0:00:07]} Be7 {[%emt 0:02:34]} 19. Be5 {[%emt 0:00:24]} O-O {[%emt 0:04:18]} 20. Qd3 {[%emt 0:00:20]} Kg7 {[%emt 0:03:35]} 21. Rf5 {[%emt 0:01:33]} Bd6 {[%emt 0:03:45]} 22. Raf1 {[%emt 0:01:16]} Bxe5 {[%emt 0:06:40]} 23. dxe5 {[%emt 0:00:08]} Nd7 {[%emt 0:06:34]} 24. h4 {[%emt 0:01:36]} Qe7 {[%emt 0:09:05]} 25. hxg5 {[%emt 0:00:45]} hxg5 {[%emt 0:00:28]} 26. e6 {[%emt 0:01:52]} Nc5 {[%emt 0:03:15]} 27. Qd4+ {[%emt 0:00:57]} Kg6 {[%emt 0:00:41]} 28. Rf7 {[%emt 0:01:56]} Rxf7 {[%emt 0:00:47]} 29. exf7 {[%emt 0:01:08]} Ne6 {[%emt 0:02:19]} 30. Qd3+ {[%emt 0:00:43]} Kg7 31. Qc3+ {[%emt 0:01:40]} Kg6 {[%emt 0:02:15]} 32. Qe5 {[%emt 0:01:03]} Rf8 {[%emt 0:02:04]} 33. Re1 {[%emt 0:01:32]} Qc5+ {[%emt 0:00:56]} 34. Kh1 {[%emt 0:00:08]} Ng7 {[%emt 0:00:35]} 35. Be4+ {[%emt 0:03:20]} Kxf7 {[%emt 0:00:51]} 36. Bh7 {[%emt 0:03:06]} Ne6 {[%emt 0:02:46]} 37. Qxe6+ {[%emt 0:00:12]} Kg7 {[%emt 0:00:04]} 38. Qg6+ {[%emt 0:00:12]} Kh8 {[%emt 0:00:17]} 39. Qh6 {[%emt 0:01:04]} Qe7 {[%emt 0:01:39]} 40. Rxe7 {[%emt 0:00:00]} Rf2 1-0

[Event "EYCC Girls-U12 2019"]
[Site "Bratislava"]
[Date "2019.08.10"]
[Round "9.23"]
[White "Bargan, Victoria"]
[Black "Lapushnian, Maya"]
[Result "1/2-1/2"]
[ECO "A57"]
[WhiteElo "1574"]
[BlackElo "1360"]
[Annotator "NA RC"]
[PlyCount "50"]
[EventDate "2019.08.02"]
[EventType "swiss"]
[EventCountry "SVK"]
[SourceTitle "playchess.com"]
[Source "ChessBase"]
[SourceQuality "1"]
[TimeControl "40/5400+30:1800+30"]

1. d4 {[%emt 0:00:00]} Nf6 {[%emt 0:00:00]} 2. c4 {[%emt 0:00:00]} c5 {[%emt 0:00:00]} 3. d5 {[%emt 0:00:00]} b5 {[%emt 0:00:00]} 4. cxb5 {[%emt 0:00:00]} a6 {[%emt 0:00:00]} 5. e3 {[%emt 0:00:00]} Bb7 {[%emt 0:00:00]} 6. Nc3 {[%emt 0:01:58]} Qa5 {[%emt 0:00:00]} 7. Bd2 {[%emt 0:02:12]} axb5 {[%emt 0:00:06]} 8. Bxb5 {[%emt 0:00:24]} Qb6 {[%emt 0:00:06]} 9. a4 {[%emt 0:06:44]} Nxd5 {[%emt 0:11:26]} 10. Nf3 {[%emt 0:02:03]} Nf6 {[%emt 0:04:04]} 11. O-O {[%emt 0:02:53]} g6 {[%emt 0:02:43]} 12. Qe2 {[%emt 0:11:37]} Bg7 {[%emt 0:00:47]} 13. Rad1 {[%emt 0:01:16]} O-O {[%emt 0:01:06]} 14. e4 {[%emt 0:01:43]} d6 {[%emt 0:00:29]} 15. e5 {[%emt 0:02:41]} dxe5 {[%emt 0:15:00]} 16. Nxe5 {[%emt 0:00:57]} Ba6 {[%emt 0:07:36]} 17. Nc4 {[%emt 0:18:38]} Bxb5 {[%emt 0:11:31]} 18. Nxb5 {[%emt 0:05:15]} Qb7 {[%emt 0:02:04]} 19. Na5 {[%emt 0:02:54]} Qb6 {[%emt 0:03:21]} 20. Qxe7 {[%emt 0:04:50]} Rxa5 {[%emt 0:01:58]} 21. Bxa5 {[%emt 0:00:35]} Qxa5 {[%emt 0:00:01]} 22. Qxc5 {[%emt 0:02:20]} Qxa4 {[%emt 0:02:38]} 23. Nd6 {[%emt 0:04:12]} Nbd7 {[%emt 0:03:20]} 24. Qc7 {[%emt 0:07:53]} Qb3 {[%emt 0:01:56]} 25. Rde1 {[%emt 0:03:59]} Qxb2 {[%emt 0:04:17]} 1/2-1/2

[Event "EYCC Girls-U12 2019"]
[Site "Bratislava"]
[Date "2019.08.10"]
[Round "9.24"]
[White "Khegai, Darya"]
[Black "Maria, Lia-Alexandra"]
[Result "0-1"]
[ECO "A46"]
[WhiteElo "1402"]
[BlackElo "1572"]
[Annotator "NA RC"]
[PlyCount "90"]
[EventDate "2019.08.02"]
[EventType "swiss"]
[EventCountry "SVK"]
[SourceTitle "playchess.com"]
[Source "ChessBase"]
[SourceQuality "1"]
[TimeControl "40/5400+30:1800+30"]

1. d4 {[%emt 0:00:00]} Nf6 {[%emt 0:00:00]} 2. Nf3 {[%emt 0:00:00]} e6 {[%emt 0:00:28]} 3. Nbd2 {[%emt 0:01:37]} c5 {[%emt 0:03:03]} 4. c3 {[%emt 0:01:22]} d5 {[%emt 0:07:03]} 5. e3 {[%emt 0:02:37]} Nc6 {[%emt 0:07:11]} 6. Ne5 {[%emt 0:00:33]} Nxe5 {[%emt 0:08:04]} 7. dxe5 {[%emt 0:00:43]} Nd7 {[%emt 0:00:26]} 8. f4 {[%emt 0:05:32]} Be7 {[%emt 0:06:13]} 9. Nf3 {[%emt 0:03:35]} a6 {[%emt 0:11:47]} 10. Be2 {[%emt 0:08:18]} h6 {[%emt 0:07:09]} 11. O-O {[%emt 0:03:47]} O-O {[%emt 0:06:43]} 12. Bd2 {[%emt 0:04:19]} Qc7 {[%emt 0:08:18]} 13. Qc2 {[%emt 0:02:56]} b5 {[%emt 0:05:00]} 14. a4 {[%emt 0:05:50]} Rb8 {[%emt 0:01:19]} 15. axb5 {[%emt 0:08:20]} axb5 {[%emt 0:00:40]} 16. h3 {[%emt 0:05:01]} c4 {[%emt 0:07:57]} 17. Nd4 {[%emt 0:02:13]} Nc5 {[%emt 0:00:25]} 18. Kh2 {[%emt 0:02:51]} Ne4 {[%emt 0:02:01]} 19. Bf3 {[%emt 0:01:41]} Nc5 {[%emt 0:02:58]} 20. e4 {[%emt 0:05:16]} Rd8 {[%emt 0:02:27]} 21. Be3 {[%emt 0:04:28]} Nd3 {[%emt 0:01:14]} 22. exd5 {[%emt 0:00:19]} exd5 {[%emt 0:00:07]} 23. Be2 {[%emt 0:00:23]} Nc5 {[%emt 0:00:20]} 24. Kg1 {[%emt 0:08:29]} Ne4 {[%emt 0:01:10]} 25. Bf3 {[%emt 0:01:39]} Nc5 {[%emt 0:02:15]} 26. b4 {[%emt 0:01:24]} cxb3 {[%emt 0:02:56]} 27. Nxb3 {[%emt 0:00:05]} Na4 {[%emt 0:00:47]} 28. Rfc1 {[%emt 0:03:37]} Ba6 {[%emt 0:02:22]} 29. Bd4 {[%emt 0:01:28]} Rbc8 {[%emt 0:01:05]} 30. Bg4 {[%emt 0:00:27]} Ra8 {[%emt 0:00:20]} 31. f5 {[%emt 0:01:15]} Bg5 {[%emt 0:00:24]} 32. Nd2 {[%emt 0:00:49]} Bb7 {[%emt 0:01:05]} 33. Rcb1 {[%emt 0:00:56]} Bc6 {[%emt 0:00:29]} 34. Nf3 {[%emt 0:00:14]} Be7 {[%emt 0:00:54]} 35. f6 {[%emt 0:00:17]} Bc5 {[%emt 0:00:41]} 36. fxg7 {[%emt 0:02:19]} Be8 {[%emt 0:00:39]} 37. Qd2 {[%emt 0:02:49]} Kxg7 {[%emt 0:00:42]} 38. e6+ {[%emt 0:03:52]} f6 {[%emt 0:00:43]} 39. Nh4 {[%emt 0:01:03]} Bg6 {[%emt 0:01:00]} 40. Rxb5 {[%emt 0:00:00]} Bxd4+ {[%emt 0:00:00]} 41. cxd4 {[%emt 0:02:08]} Nc3 {[%emt 0:01:24]} 42. Rc5 {[%emt 0:00:43]} Rxa1+ {[%emt 0:00:09]} 43. Kf2 {[%emt 0:00:35]} Ne4+ {[%emt 0:00:13]} 44. Ke2 {[%emt 0:00:13]} Qg3 {[%emt 0:04:43]} 45. e7 {[%emt 0:00:48]} Qf2+ {[%emt 0:00:14]} 0-1